bitfinex/quotes_SOLUSD_20250313
["timestamp","ask_amount","ask_price","bid_price","bid_amount"]
[1741841536579,15.47798282,124.24,124.23,0.063]
[1741841537395,43.97085482,124.24,124.23,0.063]
[1741841538061,25.03688282,124.24,124.23,0.063]
[1741841541174,43.97085482,124.24,124.23,0.063]
[1741841543377,43.97085482,124.24,124.23,0.0001]
[1741841543378,51.23085482,124.24,124.23,0.0001]
[1741841543691,51.23085482,124.24,124.19,0.063]
[1741841543692,7.8983,124.22,124.19,0.063]
[1741841543861,34.41195482,124.2,124.19,0.063]
[1741841544872,23.37628282,124.22,124.19,0.063]
[1741841545062,31.42708282,124.22,124.19,0.063]
[1741841545267,23.37628282,124.22,124.19,0.063]
[1741841545482,1.6574,124.22,124.19,0.063]
[1741841545989,9.7076,124.22,124.19,0.063]
[1741841546189,1.6574,124.22,124.19,0.063]
[1741841547588,9.7076,124.22,124.19,0.063]
[1741841548893,33.90012538,124.22,124.19,0.063]
[1741841549681,25.84992538,124.22,124.19,0.063]
[1741841549996,15.1322,124.25,124.19,77.91251237]
[1741841550297,1.5248,124.25,124.21,24.19252538]
[1741841550590,25.71732538,124.25,124.19,24.25552538]
[1741841550804,24.19252538,124.24,124.19,24.25552538]
[1741841551291,24.19252538,124.24,124.19,32.30752538]
[1741841552897,32.24162538,124.24,124.19,32.30752538]
[1741841553199,24.19252538,124.24,124.19,32.30752538]
[1741841554195,25.71732538,124.25,124.2,24.19252538]
[1741841554778,24.19252538,124.24,124.19,32.30752538]
[1741841555202,24.19252538,124.24,124.19,114.70752538]
[1741841556589,24.19252538,124.24,124.19,82.463]
[1741841557391,32.24192538,124.24,124.19,82.463]
[1741841560101,24.19252538,124.22,124.19,82.463]
[1741841560301,24.19252538,124.23,124.19,82.463]
[1741841562287,32.24212538,124.23,124.19,82.463]
[1741841564797,32.24142538,124.24,124.19,90.515]
[1741841565287,32.24142538,124.24,124.19,82.463]
[1741841566317,15.48183853,124.23,124.19,82.463]
[1741841569029,23.53143853,124.23,124.19,82.463]
[1741841569211,0.063,124.25,124.22,35.48183853]
[1741841569515,0.063,124.25,124.24,15.48183853]
[1741841571004,0.063,124.25,124.24,105.93073853]
[1741841572414,0.063,124.25,124.24,97.88183853]
[1741841573010,0.063,124.25,124.24,82.4]
[1741841573195,0.063,124.25,124.24,97.88183853]
[1741841573397,0.063,124.25,124.24,105.93073853]
[1741841574798,0.063,124.25,124.24,82.4]
[1741841575117,0.063,124.25,124.24,97.88183853]
[1741841576119,0.063,124.25,124.24,82.4]
[1741841576299,0.063,124.25,124.24,97.88183853]
[1741841576817,0.063,124.25,124.24,105.93073853]
[1741841576998,0.063,124.25,124.24,97.88183853]
[1741841577198,0.063,124.25,124.24,82.4]
[1741841577917,0.063,124.25,124.24,97.88183853]
[1741841580923,0.063,124.25,124.24,105.93073853]
[1741841581409,0.063,124.25,124.24,97.88183853]
[1741841583929,0.063,124.25,124.21,7.26]
[1741841583930,0.063,124.25,124.22,82.4]
[1741841586427,0.063,124.25,124.22,97.88183853]
[1741841587527,0.063,124.25,124.23,15.48183853]
[1741841587703,0.063,124.25,124.24,22.72183853]
[1741841587905,0.063,124.25,124.24,30.77073853]
[1741841589525,0.063,124.25,124.24,15.2889]
[1741841589829,0.063,124.25,124.24,30.77073853]
[1741841590405,0.063,124.25,124.24,7.24]
[1741841592506,0.063,124.25,124.23,224.84]
[1741841593321,0.063,124.25,124.23,89.64]
[1741841596213,0.063,124.25,124.23,113.81175525]
[1741841598342,0.063,124.25,124.22,82.4]
[1741841604250,0.063,124.25,124.21,0.03]
[1741841604251,24.17175525,124.24,124.21,0.03]
[1741841605332,24.17175525,124.22,124.21,0.03]
[1741841605840,32.22195525,124.22,124.21,0.03]
[1741841609242,51.15592725,124.22,124.21,0.03]
[1741841609431,51.01376568,124.22,124.21,0.03]
[1741841609634,51.15592725,124.22,124.21,0.03]
[1741841610552,79.15702725,124.22,124.19,0.063]
[1741841610765,43.10572725,124.2,124.19,0.063]
[1741841611334,51.15722725,124.2,124.19,0.063]
[1741841611627,51.15722725,124.2,124.18,0.063]
[1741841611931,24.17175525,124.19,124.18,0.063]
[1741841612957,30.58099422,124.19,124.18,0.063]
[1741841613159,32.22385525,124.19,124.18,0.063]
[1741841614253,23.54988223,124.19,124.18,0.063]
[1741841614453,42.48385423,124.19,124.18,0.063]
[1741841614669,43.98625423,124.19,124.18,0.0001]
[1741841614834,18.933972,124.18,124.17,0.063]
[1741841615034,96.42288315,124.18,124.15,0.03]
[1741841616440,18.933972,124.16,124.15,0.03]
[1741841617951,26.988072,124.16,124.15,0.03]
[1741841618154,42.48585423,124.16,124.15,0.03]
[1741841619265,26.988072,124.16,124.15,0.03]
[1741841619461,42.48585423,124.16,124.15,0.03]
[1741841622666,42.34369266,124.16,124.15,0.03]
[1741841623369,42.48585423,124.16,124.15,0.03]
[1741841625344,44.09545423,124.16,124.15,0.03]
[1741841625867,44.09545423,124.16,124.14,0.063]
[1741841626066,22.75778223,124.15,124.14,0.063]
[1741841627663,30.81248223,124.15,124.14,0.063]
[1741841628368,69.88335423,124.15,124.12,0.063]
[1741841628565,34.43175423,124.13,124.12,0.063]
[1741841629151,34.43175423,124.13,124.11,0.03]
[1741841629356,15.49778223,124.12,124.11,0.03]
[1741841629569,34.43175423,124.12,124.11,0.03]
[1741841629766,42.48845423,124.12,124.11,0.03]
[1741841630658,23.55448223,124.12,124.11,0.03]
[1741841631654,42.48845423,124.12,124.11,0.03]
[1741841633252,42.34629266,124.12,124.11,0.03]
[1741841633459,42.48845423,124.12,124.11,0.03]
[1741841636597,23.55448223,124.12,124.11,0.03]
[1741841642065,42.48845423,124.12,124.11,0.03]
[1741841642676,20.452872,124.11,124.1,0.063]
[1741841642984,105.20178315,124.11,124.1,0.0001]
[1741841643680,113.25908315,124.11,124.1,0.0001]
[1741841644598,51.26795423,124.11,124.1,0.0001]
[1741841645086,30.81508223,124.11,124.1,0.0001]
[1741841645258,8.0573,124.11,124.1,0.0001]
[1741841645464,23.55508223,124.11,124.1,0.0001]
[1741841646680,42.48905423,124.11,124.1,0.0001]
[1741841651972,46.59918292,124.11,124.1,0.0001]
[1741841653376,23.55508223,124.11,124.1,0.0001]
[1741841653572,8.0573,124.11,124.1,0.0001]
[1741841653993,23.55508223,124.11,124.1,0.0001]
[1741841655589,26.990672,124.13,124.1,0.0001]
[1741841655900,15.49778223,124.11,124.1,0.0001]
[1741841656894,23.55508223,124.11,124.1,0.0001]
[1741841658081,8.0573,124.11,124.1,0.0001]
[1741841658299,23.55508223,124.11,124.1,0.0001]
[1741841659395,18.64964886,124.12,124.1,0.0001]
[1741841659589,20.14216157,124.14,124.1,0.0001]
[1741841659898,35.6399438,124.14,124.1,0.0001]
[1741841660693,0.28432314,124.12,124.1,0.0001]
[1741841660882,15.49778223,124.12,124.1,0.0001]
[1741841661505,18.64964886,124.13,124.1,0.0001]
[1741841661506,34.14743109,124.13,124.1,0.0001]
[1741841662001,18.64964886,124.13,124.1,0.0001]
[1741841662699,26.70574886,124.13,124.1,0.0001]
[1741841663488,42.20353109,124.13,124.1,0.0001]
[1741841663692,15.49778223,124.12,124.1,0.0001]
[1741841665216,8.0573,124.11,124.1,0.0001]
[1741841666686,23.55468223,124.12,124.1,0.0001]
[1741841667592,23.61768223,124.12,124.1,0.0001]
[1741841669385,8.1199,124.12,124.1,0.0001]
[1741841669906,0.063,124.12,124.1,0.0001]
[1741841670206,8.1197,124.12,124.1,0.0001]
[1741841673109,0.063,124.12,124.1,0.0001]
[1741841681631,15.56078223,124.12,124.1,0.0001]
[1741841681791,23.61798223,124.12,124.1,0.0001]
[1741841683597,15.49778223,124.11,124.1,0.0001]
[1741841684401,23.61798223,124.12,124.1,0.0001]
[1741841688215,8.1202,124.12,124.1,0.0001]
[1741841689318,23.61798223,124.12,124.1,0.0001]
[1741841692626,15.49778223,124.11,124.1,0.0001]
[1741841693322,23.55508223,124.11,124.1,0.0001]
[1741841693819,42.48905423,124.11,124.1,0.0001]
[1741841697206,26.991272,124.11,124.1,0.0001]
[1741841697412,8.0573,124.11,124.1,0.0001]
[1741841699436,23.55508223,124.11,124.1,0.0001]
[1741841701228,8.0573,124.11,124.1,0.0001]
[1741841701527,23.55508223,124.11,124.1,0.0001]
[1741841701924,42.48905423,124.11,124.1,0.0001]
[1741841703833,54.76568035,124.11,124.1,0.0001]
[1741841704033,25.569072,124.1,124.08,0.01]
[1741841704214,17.16258223,124.09,124.08,0.01]
[1741841705125,25.22118223,124.09,124.08,0.01]
[1741841706229,44.15515423,124.09,124.08,0.01]
[1741841717041,42.49035423,124.09,124.08,0.01]
[1741841724848,0.063,124.11,124.08,0.01]
[1741841725230,8.1204,124.11,124.08,0.01]
[1741841726672,23.61818223,124.11,124.08,0.01]
[1741841729246,0.063,124.11,124.08,0.01]
[1741841729453,0.063,124.11,124.09,15.49778223]
[1741841730031,0.063,124.11,124.08,15.50778223]
[1741841731138,0.063,124.11,124.09,15.49778223]
[1741841731346,0.063,124.11,124.1,15.49778223]
[1741841732054,0.063,124.11,124.09,15.49778223]
[1741841734836,0.063,124.11,124.08,97.90778223]
[1741841736659,0.063,124.11,124.09,15.49778223]
[1741841737665,0.063,124.11,124.1,15.49778223]
[1741841737949,0.063,124.11,124.09,15.49778223]
[1741841738255,0.063,124.11,124.08,82.41]
[1741841738442,0.063,124.11,124.08,97.90778223]
[1741841745958,0.063,124.11,124.09,15.49778223]
[1741841746467,0.063,124.11,124.08,97.90778223]
[1741841748371,8.1203,124.11,124.08,82.41]
[1741841748576,23.61808223,124.11,124.08,82.41]
[1741841748755,18.933972,124.1,124.08,0.01]
[1741841750168,18.79181043,124.1,124.08,0.01]
[1741841750375,8.1203,124.11,124.08,0.01]
[1741841751875,18.933972,124.1,124.08,0.01]
[1741841752060,18.79181043,124.1,124.08,0.01]
[1741841752574,8.0586,124.09,124.08,0.01]
[1741841754958,23.6985438,124.09,124.08,0.01]
[1741841755154,50.72385423,124.09,124.08,0.01]
[1741841760678,44.09185423,124.09,124.08,0.01]
[1741841761258,23.55638223,124.09,124.08,0.01]
[1741841761567,8.0586,124.09,124.08,0.01]
[1741841768754,26.992572,124.09,124.08,0.01]
[1741841768961,42.49035423,124.09,124.08,0.01]
[1741841769755,25.147272,124.08,124.02,0.03]
[1741841769955,15.49778223,124.03,124.02,0.03]
[1741841770186,15.6399438,124.03,124.02,0.03]
[1741841770385,34.43175423,124.03,124.02,0.03]
[1741841770578,42.49425423,124.03,124.02,0.03]
[1741841771288,26.996472,124.03,124.02,0.03]
[1741841771462,42.49425423,124.03,124.02,0.03]
[1741841772284,49.73425423,124.03,124.02,0.03]
[1741841776194,18.933972,124.02,123.98,0.03]
[1741841776364,0.14216157,123.99,123.98,0.03]
[1741841777085,0.28432314,124.02,123.98,0.03]
[1741841777269,0.14216157,124.0,123.98,0.03]
[1741841777585,0.14216157,124.0,123.96,12.05778223]
[1741841778566,0.28432314,124.0,123.96,12.05778223]
[1741841778765,0.28432314,124.0,123.96,20.12468223]
[1741841779683,8.34922314,124.0,123.96,15.49778223]
[1741841779882,0.28432314,124.0,123.96,15.49778223]
[1741841783189,8.34882314,124.0,123.96,15.49778223]
[1741841784273,23.84660537,124.0,123.95,97.92778223]
[1741841784493,23.84660537,124.0,123.95,105.99528223]
[1741841784670,8.34882314,124.0,123.96,15.52778223]
[1741841786401,0.14216157,123.98,123.96,0.03]
[1741841786909,15.78210537,123.98,123.96,0.03]
[1741841787398,18.933972,123.97,123.96,0.03]
[1741841787581,34.43175423,123.97,123.96,0.03]
[1741841788471,42.49815423,123.97,123.96,0.03]
[1741841788668,42.49815423,123.97,123.95,0.03]
[1741841788669,104.48928315,123.97,123.95,0.0001]
[1741841788980,36.05185423,123.96,123.95,0.0001]
[1741841790183,36.05185423,123.96,123.89,7.69]
[1741841790388,18.933972,123.91,123.89,7.69]
[1741841791274,0.14216157,123.92,123.89,7.69]
[1741841791479,18.79181043,123.92,123.89,7.69]
[1741841791803,42.35799266,123.94,123.89,23.18778223]
[1741841792005,34.28959266,123.94,123.89,23.18778223]
[1741841792677,0.14216157,123.93,123.89,7.69]
[1741841794401,1.6201,123.96,123.91,15.49778223]
[1741841794572,0.14216157,123.95,123.91,15.49778223]
[1741841794767,0.14216157,123.95,123.92,15.49778223]
[1741841795189,0.14216157,123.97,123.92,15.49778223]
[1741841795396,18.933972,123.97,123.93,15.49778223]
[1741841797075,18.933972,123.97,123.93,23.56658223]
[1741841798404,1.6348,123.99,123.95,15.49778223]
[1741841798595,0.14216157,123.99,123.95,15.49778223]
[1741841800094,0.14216157,123.99,123.95,23.56538223]
[1741841804000,0.14216157,123.99,123.95,15.49778223]
[1741841806101,8.20736157,123.99,123.95,15.49778223]
[1741841806802,23.7051438,123.99,123.94,105.96598223]
[1741841806996,18.79181043,123.98,123.94,97.89778223]
[1741841807196,15.6399438,123.96,123.91,15.49778223]
[1741841808307,8.0677,123.95,123.91,15.49778223]
[1741841809007,18.933972,123.94,123.9,97.89778223]
[1741841809224,34.43175423,123.94,123.9,82.4]
[1741841810007,0.14216157,123.95,123.91,15.49778223]
[1741841811400,8.20996157,123.95,123.91,15.49778223]
[1741841811594,8.20996157,123.95,123.9,82.4]
[1741841811797,0.14216157,123.95,123.91,15.49778223]
[1741841812385,0.14216157,123.95,123.9,90.4709]
[1741841812701,0.14216157,123.95,123.91,15.49778223]
[1741841814401,1.599,123.97,123.93,15.49778223]
[1741841814786,1.599,123.97,123.94,15.49778223]
[1741841815107,8.0662,123.98,123.94,15.49778223]
[1741841816730,0.14216157,123.98,123.94,15.49778223]
[1741841817313,0.14216157,123.98,123.93,15.49778223]
[1741841817609,8.20836157,123.98,123.93,15.49778223]
[1741841818411,8.20836157,123.98,123.93,23.56678223]
[1741841818609,8.20836157,123.98,123.94,15.49778223]
[1741841819405,0.063,123.99,123.95,15.49778223]
[1741841819613,0.20516157,123.99,123.95,15.49778223]
[1741841820106,0.063,123.99,123.97,15.49778223]
[1741841820299,0.063,123.99,123.95,97.89778223]
[1741841820497,15.56078223,123.99,123.95,82.4]
[1741841820701,0.063,123.99,123.95,82.4]
[1741841822015,0.14216157,123.98,123.95,82.4]
[1741841823211,34.28959266,123.98,123.94,0.03]
[1741841823610,18.79181043,123.98,123.94,0.03]
[1741841824205,26.85781043,123.98,123.94,0.03]
[1741841824724,42.35559266,123.98,123.94,0.03]
[1741841825122,26.85781043,123.98,123.94,0.03]
[1741841826820,26.85781043,123.98,123.94,15.52778223]
[1741841827219,9.6715,123.99,123.95,15.49778223]
[1741841828700,9.6715,123.99,123.94,105.99588223]
[1741841829528,8.1283,123.99,123.95,15.49778223]
[1741841831223,0.14216157,123.98,123.94,97.92778223]
[1741841831521,8.20796157,123.98,123.94,82.43]
[1741841832331,23.7057438,123.98,123.94,82.43]
[1741841832538,23.7057438,123.98,123.95,0.03]
[1741841833928,18.933972,123.96,123.95,0.03]
[1741841835209,42.49885423,123.96,123.95,0.03]
[1741841835820,0.14216157,123.96,123.95,0.03]
[1741841838421,9.7279,123.97,123.95,0.03]
[1741841838597,1.6612,123.97,123.95,0.03]
[1741841838803,0.14216157,123.97,123.95,0.03]
[1741841839700,31.0081438,123.99,123.95,0.03]
[1741841839919,15.3682,123.99,123.95,0.03]
[1741841840209,0.20516157,123.99,123.95,15.52778223]
[1741841840823,0.063,123.99,123.96,15.49778223]
[1741841841002,0.063,123.99,123.95,97.92778223]
[1741841841826,0.063,123.99,123.95,105.99548223]
[1741841846128,0.063,123.99,123.95,97.92778223]
[1741841847430,0.063,123.99,123.97,15.49778223]
[1741841849339,0.063,123.99,123.98,15.49778223]
[1741841849641,0.063,123.99,123.98,35.49778223]
[1741841849819,0.063,123.99,123.98,20.0]
[1741841851145,0.063,123.99,123.96,15.49778223]
[1741841851438,0.063,123.99,123.95,84.0755]
[1741841851757,0.063,123.99,123.96,15.49778223]
[1741841852048,8.1281,123.99,123.95,97.92778223]
[1741841852846,0.063,123.99,123.97,15.49778223]
[1741841853317,0.063,123.99,123.98,15.49778223]
[1741841854937,0.063,123.99,123.97,15.49778223]
[1741841857015,0.063,123.99,123.97,97.89778223]
[1741841857216,0.063,123.99,123.98,15.49778223]
[1741841857742,0.063,123.99,123.97,97.89778223]
[1741841862652,0.063,123.99,123.97,82.4]
[1741841862950,0.063,123.99,123.96,15.49778223]
[1741841863865,15.56078223,123.99,123.95,217.63]
[1741841864030,15.56078223,123.99,123.95,82.43]
[1741841864631,8.0658,123.98,123.95,82.43]
[1741841868756,8.0658,123.98,123.95,0.03]
[1741841869348,15.49778223,123.97,123.95,0.03]
[1741841869950,15.6399438,123.96,123.95,0.03]
[1741841870154,0.14216157,123.96,123.95,0.03]
[1741841870459,15.6399438,123.96,123.95,0.03]
[1741841870767,23.7070438,123.96,123.95,0.03]
[1741841871268,8.20926157,123.96,123.95,0.03]
[1741841873051,0.14216157,123.97,123.95,0.03]
[1741841875060,8.20876157,123.97,123.95,0.03]
[1741841875643,0.14216157,123.96,123.95,0.03]
[1741841875842,18.79181043,123.96,123.95,0.03]
[1741841876239,34.28959266,123.96,123.95,0.03]
[1741841877352,42.35669266,123.96,123.95,0.03]
[1741841878271,26.85891043,123.96,123.95,0.03]
[1741841878639,8.0671,123.96,123.95,0.03]
[1741841880768,8.0666,123.97,123.95,0.03]
[1741841881744,7.0666,123.97,123.95,0.03]
[1741841881945,8.27096157,123.98,123.95,0.03]
[1741841883763,8.1288,123.98,123.95,0.03]
[1741841883963,0.063,123.98,123.96,15.49778223]
[1741841885569,0.20516157,123.98,123.95,0.03]
[1741841885755,0.063,123.98,123.95,15.52778223]
[1741841887256,0.063,123.98,123.95,0.03]
[1741841887452,0.20516157,123.98,123.95,0.03]
[1741841887849,34.49475423,123.98,123.95,0.03]
[1741841888054,8.20926157,123.96,123.95,0.03]
[1741841888263,23.7070438,123.96,123.95,0.03]
[1741841888459,42.49885423,123.96,123.95,0.03]
[1741841891791,46.61336881,123.96,123.95,0.03]
[1741841891969,8.20926157,123.96,123.95,0.03]
[1741841895270,42.49885423,123.96,123.95,0.03]
[1741841895455,50.43205423,123.96,123.95,0.03]
[1741841900275,50.43205423,123.96,123.94,0.0001]
[1741841900481,15.6399438,123.95,123.94,0.0001]
[1741841901575,23.7076438,123.95,123.94,0.0001]
[1741841903054,42.49945423,123.95,123.94,0.0001]
[1741841906886,0.063,123.97,123.94,20.0001]
[1741841907183,0.063,123.97,123.96,15.49778223]
[1741841907766,0.063,123.97,123.96,23.56488223]
[1741841908779,0.063,123.97,123.96,247.41498223]
[1741841909767,0.063,123.97,123.96,309.40611115]
[1741841909988,0.063,123.97,123.96,247.41498223]
[1741841913483,0.063,123.97,123.96,309.40611115]
[1741841913686,0.063,123.97,123.96,249.41498223]
[1741841914395,0.063,123.99,123.98,82.337]
[1741841914701,0.063,123.99,123.98,240.27478223]
[1741841916480,0.063,123.99,123.98,248.34058223]
[1741841918499,0.063,123.99,123.98,250.34058223]
[1741841920297,0.063,123.99,123.98,248.34058223]
[1741841924399,0.063,124.03,124.01,20.0]
[1741841924600,0.063,124.03,124.02,15.49778223]
[1741841924978,0.063,124.03,124.02,105.89798223]
[1741841928117,0.063,124.03,124.02,97.83478223]
[1741841931207,0.063,124.03,124.02,105.89798223]
[1741841934110,0.063,124.03,124.02,248.33798223]
[1741841937802,0.063,124.03,124.02,267.27195423]
[1741841937989,0.063,124.09,124.05,20.0]
[1741841938308,0.063,124.09,124.07,15.49778223]
[1741841942018,0.063,124.09,124.07,97.83478223]
[1741841943121,0.063,124.09,124.07,82.337]
[1741841946500,0.063,124.09,124.07,97.83478223]
[1741841950119,0.063,124.09,124.08,15.49778223]
[1741841950320,0.063,124.09,124.08,97.83478223]
[1741841950707,0.063,124.09,124.08,241.09408223]
[1741841955720,0.063,124.09,124.08,260.02805423]
[1741841955917,0.063,124.09,124.08,241.09408223]
[1741841957719,0.063,124.1,124.09,82.274]
[1741841957925,0.063,124.1,124.09,97.77178223]
[1741841959230,0.063,124.1,124.09,105.83038223]
[1741841962533,0.063,124.1,124.09,241.03038223]
[1741841970444,0.063,124.1,124.09,248.25038223]
[1741841974844,0.063,124.1,124.09,240.19178223]
[1741841975845,0.063,124.1,124.09,82.274]
[1741841985628,0.063,124.1,124.09,82.304]
[1741841993449,0.063,124.1,124.09,97.80178223]
[1741841993656,0.063,124.1,124.09,241.06038223]
[1741842001158,0.063,124.1,124.09,217.504]
[1741842001355,0.063,124.1,124.09,233.00178223]
[1741842002054,0.063,124.1,124.09,241.06038223]
[1741842004970,9.7102,124.16,124.15,20.0]
[1741842004971,0.063,124.16,124.15,20.0]
[1741842005173,0.063,124.16,124.15,117.64568223]
[1741842005367,0.063,124.16,124.15,252.84568223]
[1741842005951,12.29336693,124.18,124.16,18.933972]
[1741842006155,0.063,124.22,124.2,20.0]
[1741842006354,0.063,124.22,124.2,260.06568223]
[1741842006763,0.063,124.22,124.2,82.1479]
[1741842007261,1.6841,124.22,124.2,82.1479]
[1741842008155,0.063,124.22,124.21,15.49778223]
[1741842009655,0.063,124.22,124.21,240.06568223]
[1741842009853,0.063,124.22,124.21,82.1479]
[1741842010081,15.56078223,124.22,124.18,217.3479]
[1741842010788,0.063,124.22,124.18,232.84568223]
[1741842011373,15.56078223,124.22,124.18,217.3479]
[1741842011558,23.61098223,124.22,124.18,217.3479]
[1741842012466,0.063,124.22,124.18,232.84568223]
[1741842012666,0.063,124.22,124.18,217.3479]
[1741842013171,0.063,124.22,124.18,232.84568223]
[1741842014063,0.063,124.22,124.18,217.3479]
[1741842014272,15.56078223,124.22,124.18,217.3479]
[1741842014455,17.05868223,124.21,124.18,217.3479]
[1741842015258,17.05868223,124.21,124.18,82.1479]
[1741842015776,8.0515,124.2,124.18,82.1479]
[1741842015983,15.49778223,124.19,124.16,82.1479]
[1741842016179,15.49778223,124.18,124.16,82.1479]
[1741842016567,50.21798223,124.2,124.16,82.1479]
[1741842016768,15.49778223,124.19,124.16,82.1479]
[1741842017985,15.49778223,124.18,124.16,82.1479]
[1741842018681,15.49778223,124.17,124.16,82.1479]
[1741842018879,15.49778223,124.17,124.13,217.3479]
[1741842019061,15.49778223,124.17,124.13,82.1479]
[1741842019665,15.49778223,124.16,124.13,82.1479]
[1741842019861,8.0547,124.15,124.13,82.1479]
[1741842020164,23.55118223,124.17,124.13,82.1479]
[1741842021987,23.55078223,124.18,124.13,97.64568223]
[1741842022787,8.053,124.18,124.13,97.64568223]
[1741842023087,22.03768223,124.2,124.15,15.49778223]
[1741842023284,14.5915,124.2,124.17,15.49778223]
[1741842023471,6.5399,124.2,124.16,15.49778223]
[1741842023666,30.08928223,124.2,124.15,217.3479]
[1741842023866,23.55048223,124.19,124.15,217.3479]
[1741842024289,8.0527,124.19,124.15,232.84568223]
[1741842024978,30.08938223,124.2,124.15,232.84568223]
[1741842025379,30.08938223,124.2,124.15,217.3479]
[1741842026967,30.08938223,124.2,124.15,82.1479]
[1741842027163,15.49778223,124.17,124.15,82.1479]
[1741842027384,23.55058223,124.18,124.15,82.1479]
[1741842027577,8.0523,124.19,124.15,97.64568223]
[1741842028294,23.55008223,124.19,124.15,82.1479]
[1741842029363,8.0523,124.19,124.15,82.1479]
[1741842029886,22.03768223,124.2,124.16,15.49778223]
[1741842029887,6.5399,124.2,124.16,15.49778223]
[1741842030389,30.08928223,124.2,124.15,232.84568223]
[1741842030983,30.08928223,124.2,124.15,225.4024]
[1741842031168,8.0516,124.2,124.16,15.49778223]
[1741842031870,1.5609,124.21,124.18,15.49778223]
[1741842032180,1.5609,124.21,124.18,97.64568223]
[1741842032365,0.063,124.22,124.2,15.49778223]
[1741842034411,0.063,124.22,124.2,23.54908223]
[1741842034572,0.063,124.22,124.21,15.49778223]
[1741842034772,0.063,124.22,124.21,232.84568223]
[1741842036299,0.063,124.22,124.21,217.3479]
[1741842037376,0.063,124.22,124.21,240.89648223]
[1741842037998,0.063,124.22,124.21,232.84568223]
[1741842038199,0.063,124.22,124.21,217.3479]
[1741842038695,0.063,124.22,124.21,82.1479]
[1741842041196,15.56078223,124.22,124.21,82.1479]
[1741842042200,23.61098223,124.22,124.21,82.1479]
[1741842042378,8.1132,124.22,124.21,82.1479]
[1741842042573,0.063,124.22,124.2,20.0]
[1741842042799,0.063,124.22,124.19,15.49778223]
[1741842044094,0.063,124.22,124.2,15.49778223]
[1741842044302,0.063,124.22,124.2,43.54918223]
[1741842045010,0.063,124.22,124.21,15.49778223]
[1741842045802,0.063,124.22,124.21,232.84568223]
[1741842046605,0.063,124.22,124.21,240.89648223]
[1741842046895,0.063,124.22,124.21,232.84568223]
[1741842050684,0.063,124.22,124.21,217.3479]
[1741842055114,0.063,124.22,124.21,232.84568223]
[1741842056515,0.063,124.22,124.21,217.3479]
[1741842057716,0.063,124.22,124.21,232.84568223]
[1741842061923,0.063,124.22,124.21,217.3479]
[1741842062122,0.063,124.22,124.21,82.1479]
[1741842064826,15.56078223,124.22,124.21,82.1479]
[1741842065199,0.063,124.22,124.21,82.1479]
[1741842067739,0.063,124.22,124.21,90.1987]
[1741842068028,0.063,124.22,124.21,225.3987]
[1741842068722,0.063,124.24,124.22,82.43222314]
[1741842068932,0.03,124.28,124.26,20.0]
[1741842069117,0.03,124.28,124.26,252.84568223]
[1741842069729,0.03,124.28,124.26,245.3954]
[1741842069925,0.03,124.28,124.26,237.3479]
[1741842070126,15.49778223,124.27,124.26,217.3479]
[1741842071734,34.43175423,124.27,124.23,89.3679]
[1741842071912,15.49778223,124.25,124.23,82.1479]
[1741842072430,15.49778223,124.27,124.23,82.1479]
[1741842073411,23.57428223,124.28,124.23,105.69518223]
[1741842074316,0.03,124.28,124.23,240.89518223]
[1741842074513,0.03,124.28,124.23,217.3479]
[1741842074514,15.49778223,124.27,124.23,217.3479]
[1741842074831,8.0763,124.28,124.23,217.3479]
[1741842075012,15.49778223,124.27,124.23,217.3479]
[1741842076131,23.57408223,124.28,124.23,217.3479]
[1741842076324,23.57408223,124.28,124.23,225.3974]